{"text_format":"3","workbook":"xlsx","n_sheets":8,"sheets":["Uputstva","Rutinski redovni","Povremeni poznanici","Potencijalni klijenti","Plan umrežavanja za Q1","Plan umrežavanja za Q2","Plan umrežavanja za Q3","Plan umrežavanja za Q4"],"not_rendered":{"defined_names":7},"read":"whole","date_system":"1900"}

{"sheet":"Uputstva","index":0,"n_rows":17,"n_cols":5,"rows_kept":17,"merged":[[0,0,0,2],[1,1,1,6],[2,1,2,6],[3,1,3,6],[4,1,4,6],[5,1,5,6],[6,1,6,6],[7,1,7,6],[8,1,8,6],[9,1,9,6],[10,1,10,6],[11,1,11,6]]}
["Praćenje osnove dodira",null,null,"Uputstva"]
[null,"1. Odlučite u koju kategoriju vaš kontakt spada:"]
[null,"• Rutinski redovni – osobe sa kojima želite da budete u kontaktu redovno"]
[null,"• Povremeni poznanici – osobe kojima želite da se obratite nekoliko puta godišnje"]
[null,"• Potencijalni klijenti– osobe/preduzeća koje biste želeli da imate u evidenciji kako biste došli do njih kada dođe vreme"]
[null,"2. Otvorite odgovarajuću karticu radnog lista."]
[null,"3. Unesite njihove informacije (da biste kreirali novi red u ćeliji, pritisnite kombinaciju tastera Alt+Enter u operativnom sistemu Windows ili Option+Return na Mac računaru)."]
[null,"Ovde potražite nova uputstva za redove za Excel aplikacije za mobilne uređaje."]
[null,"4. U koloni Datum praćenja, izbrišite uzorak datuma/formule, unesite kada želite da im se obratite, \na zatim pritisnite taster Enter."]
[null,"5. Kolona Datum praćenja prikazaće crvenu boju kada je datum veoma blizu, žutu boju kada se datum približi i \nzeleno kada imate dovoljno vremena."]
[null,"6. Kako se datum praćenja bliži, boja će se promeniti u skladu sa tim."]
[null,"7. Kada se obratite kontaktu, otkucajte „DA“ u okviru kolone „Gotovo?“. Datum će posiveti. "]
[null,"8. Ako želite ponovo da im se obratite, zamenite „DA“ sa „NE“ i otkucajte novi Datum praćenja."]
[null,null,"Crvena","Žuta","Zelena"]
[null,"Rutinski redovni","1-3 dana je odsutan","4-7 dana je odsutan","Još 8-14 i više dana"]
[null,"Povremeni poznanici","1-7 dana je odsutan","8-45 dana je odsutan","Još 46-90 i više dana"]
[null,"Potencijalni klijenti","1-14 dana je odsutan","15-60 dana je odsutan","Još 60-120 i više dana"]

{"sheet":"Rutinski redovni","index":1,"n_rows":7,"n_cols":8,"rows_kept":7,"merged":[[0,0,0,2]]}
["Praćenje osnove dodira",null,null,"Rutinski redovni"]
[]
["Ime","Preduzeće","Kontakt informacije","Gde smo se sastali","Beleške","Datum praćenja","Gotovo","Beleške iz razgovora"]
["Garth Fort","Adventure Works","Menadžer projekta\ngarth@adventure-works.com\n(234) 555-0134\nadventure-works.com\nlinkedin.com/in/garth-fort","Sajam 2010","Pitajte o ćerki Sandri i kako napreduje renoviranje. Ne sviđa mi se velika grupa i začinjena hrana.",{"$f":"TODAY()+8","v":"2021-07-21"},"NE"]
["Ime","Ime preduzeća","Radno mesto\nAdresa e-pošte\nBroj telefona\nVeb sajt\nVeze društvenih profila\n","Lokacija","Unesite sve beleške koje želite da zapamtite o ovoj osobi; gde ste se upoznali, o čemu ste razgovarali, o čemu želite da razgovarate sledeći put kada budete razgovarali itd.",{"$f":"TODAY()-3","v":"2021-07-10"},"DA"]
["Ime","Ime preduzeća","Radno mesto\nAdresa e-pošte\nBroj telefona\nVeb sajt\nVeze društvenih profila\n","Lokacija","Unesite sve beleške koje želite da zapamtite o ovoj osobi; gde ste se upoznali, o čemu ste razgovarali, o čemu želite da razgovarate sledeći put kada budete razgovarali itd.",{"$f":"TODAY()+-3","v":"2021-07-10"},"NE"]
["Ime","Ime preduzeća","Radno mesto\nAdresa e-pošte\nBroj telefona\nVeb sajt\nVeze društvenih profila\n","Lokacija","Unesite sve beleške koje želite da zapamtite o ovoj osobi; gde ste se upoznali, o čemu ste razgovarali, o čemu želite da razgovarate sledeći put kada budete razgovarali itd.",{"$f":"TODAY()+6","v":"2021-07-19"},"NE"]

{"sheet":"Povremeni poznanici","index":2,"n_rows":7,"n_cols":8,"rows_kept":7,"merged":[[0,0,0,2]]}
["Praćenje osnove dodira",null,null,"Povremeni poznanici"]
[]
["Ime","Preduzeće","Kontakt informacije","Gde smo se sastali","Beleške","Datum praćenja","Gotovo","Beleške iz razgovora"]
["Garth Fort","Adventure Works","Menadžer ljudskih resursa\ngarth@adventure-works.com\n(434) 555-0123\nwww.adventure-works.com\nlinkedin.com/in/garth-fort","Odmor u Vermontu 2016.","Praktično kako za zapošljavanje, tako i za marketinška pitanja",{"$f":"TODAY()+90","v":"2021-10-11"},"NE"]
["Ime","Ime preduzeća","Radno mesto\nAdresa e-pošte\nBroj telefona\nVeb sajt\nVeze društvenih profila\n","Lokacija","Unesite sve beleške koje želite da zapamtite o ovoj osobi; gde ste se upoznali, o čemu ste razgovarali, o čemu želite da razgovarate sledeći put kada budete razgovarali itd.",{"$f":"TODAY()-3","v":"2021-07-10"},"DA"]
["Ime","Ime preduzeća","Radno mesto\nAdresa e-pošte\nBroj telefona\nVeb sajt\nVeze društvenih profila\n","Lokacija","Unesite sve beleške koje želite da zapamtite o ovoj osobi; gde ste se upoznali, o čemu ste razgovarali, o čemu želite da razgovarate sledeći put kada budete razgovarali itd.",{"$f":"TODAY()+-3","v":"2021-07-10"},"NE"]
["Ime","Ime preduzeća","Radno mesto\nAdresa e-pošte\nBroj telefona\nVeb sajt\nVeze društvenih profila\n","Lokacija","Unesite sve beleške koje želite da zapamtite o ovoj osobi; gde ste se upoznali, o čemu ste razgovarali, o čemu želite da razgovarate sledeći put kada budete razgovarali itd.",{"$f":"TODAY()+40","v":"2021-08-22"},"NE"]

{"sheet":"Potencijalni klijenti","index":3,"n_rows":7,"n_cols":8,"rows_kept":7,"merged":[[0,0,0,2]]}
["Praćenje osnove dodira",null,null,"Potencijalni klijenti"]
[]
["Ime","Preduzeće","Kontakt informacije","Gde smo se sastali","Beleške","Datum praćenja","Gotovo","Beleške iz razgovora"]
["Garth Fort","Freelancer","Dizajner\nneko@primer.com\n425-555-0123\nprimer.com\nlinkedin.com/in/garth-fort","Diplomiranje sina 2016.","Nedavni stepen – veoma kvalifikovan. Može biti korisno za buduće klijente.",{"$f":"TODAY()+89","v":"2021-10-10"},"NE"]
["Ime","Ime preduzeća","Radno mesto\nAdresa e-pošte\nBroj telefona\nVeb sajt\nVeze društvenih profila\n","Lokacija","Unesite sve beleške koje želite da zapamtite o ovoj osobi; gde ste se upoznali, o čemu ste razgovarali, o čemu želite da razgovarate sledeći put kada budete razgovarali itd.",{"$f":"TODAY()-3","v":"2021-07-10"},"DA"]
["Ime","Ime preduzeća","Radno mesto\nAdresa e-pošte\nBroj telefona\nVeb sajt\nVeze društvenih profila\n","Lokacija","Unesite sve beleške koje želite da zapamtite o ovoj osobi; gde ste se upoznali, o čemu ste razgovarali, o čemu želite da razgovarate sledeći put kada budete razgovarali itd.",{"$f":"TODAY()+-3","v":"2021-07-10"},"NE"]
["Ime","Ime preduzeća","Radno mesto\nAdresa e-pošte\nBroj telefona\nVeb sajt\nVeze društvenih profila\n","Lokacija","Unesite sve beleške koje želite da zapamtite o ovoj osobi; gde ste se upoznali, o čemu ste razgovarali, o čemu želite da razgovarate sledeći put kada budete razgovarali itd.",{"$f":"TODAY()+30","v":"2021-08-12"},"NE"]

{"sheet":"Plan umrežavanja za Q1","index":4,"n_rows":20,"n_cols":6,"rows_kept":20,"merged":[[0,0,0,3],[2,0,2,3],[4,0,4,3],[14,5,17,5],[18,0,18,3]]}
["Plan proširenja mreže"]
["Uputstva"]
["Napišite kako planirate da proširite mrežu u ovom kvartalu (npr. upućivanje više telefonskih poziva, više putovanja itd.). Zatim svaki put kada dobijete novi kontakt, promenite stvarni broj napravljenih kontakata da biste pratili i videli koliko ste blizu cilja."]
[]
["Kako planiram da proširim mrežu u ovom kvartalu"]
["1. Upućujte još telefonskih poziva"]
["2. Putujte više"]
[]
[]
[]
[]
[]
[]
["Kvartalni cilj kontakta","Krajnji rok","Napravljeni su stvarni kvartalni kontakti","Rezultati"]
[20,{"$f":"TODAY()","v":"2021-07-13"},12,{"$f":"IF(tblGoals[[#This Row],[Kvartalni cilj kontakta]]>0,tblGoals[[#This Row],[Napravljeni su stvarni kvartalni kontakti]]/tblGoals[[#This Row],[Kvartalni cilj kontakta]],\"\")","v":{"v":0.6,"d":"60%"}},null,"0% - 25%\n26% - 50%\n51% - 75%\n76% - 100%\n\nPromene boja na osnovu dostignutog procenta"]
[{"$nulls":3},{"$f":"IF(tblGoals[[#This Row],[Kvartalni cilj kontakta]]>0,tblGoals[[#This Row],[Napravljeni su stvarni kvartalni kontakti]]/tblGoals[[#This Row],[Kvartalni cilj kontakta]],\"\")","v":""}]
[{"$nulls":3},{"$f":"IF(tblGoals[[#This Row],[Kvartalni cilj kontakta]]>0,tblGoals[[#This Row],[Napravljeni su stvarni kvartalni kontakti]]/tblGoals[[#This Row],[Kvartalni cilj kontakta]],\"\")","v":""}]
[]
["Odraz na rezultat /beleške za poboljšanje"]
["Približili smo se. Umesto toga, pokušajte da pozovete u vreme ručka."]

{"sheet":"Plan umrežavanja za Q2","index":5,"n_rows":20,"n_cols":6,"rows_kept":20,"merged":[[0,0,0,3],[2,0,2,3],[4,0,4,3],[14,5,17,5],[18,0,18,3]]}
["Plan proširenja mreže"]
["Uputstva"]
["Napišite kako planirate da proširite mrežu u ovom kvartalu (npr. upućivanje više telefonskih poziva, više putovanja itd.). Zatim svaki put kada dobijete novi kontakt, promenite stvarni broj napravljenih kontakata da biste pratili i videli koliko ste blizu cilja."]
[]
["Kako planiram da proširim mrežu u ovom kvartalu"]
["1. Upućujte još telefonskih poziva"]
["2. Putujte više"]
[]
[]
[]
[]
[]
[]
["Kvartalni cilj kontakta","Krajnji rok","Napravljeni su stvarni kvartalni kontakti","Rezultati"]
[20,{"$f":"TODAY()","v":"2021-07-13"},12,{"$f":"IF(tblGoals3[[#This Row],[Kvartalni cilj kontakta]]>0,tblGoals3[[#This Row],[Napravljeni su stvarni kvartalni kontakti]]/tblGoals3[[#This Row],[Kvartalni cilj kontakta]],\"\")","v":{"v":0.6,"d":"60%"}},null,"0% - 25%\n26% - 50%\n51% - 75%\n76% - 100%\n\nPromene boja na osnovu dostignutog procenta"]
[{"$nulls":3},{"$f":"IF(tblGoals3[[#This Row],[Kvartalni cilj kontakta]]>0,tblGoals3[[#This Row],[Napravljeni su stvarni kvartalni kontakti]]/tblGoals3[[#This Row],[Kvartalni cilj kontakta]],\"\")","v":""}]
[{"$nulls":3},{"$f":"IF(tblGoals3[[#This Row],[Kvartalni cilj kontakta]]>0,tblGoals3[[#This Row],[Napravljeni su stvarni kvartalni kontakti]]/tblGoals3[[#This Row],[Kvartalni cilj kontakta]],\"\")","v":""}]
[]
["Odraz na rezultat /beleške za poboljšanje"]
["Približili smo se. Umesto toga, pokušajte da pozovete u vreme ručka."]

{"sheet":"Plan umrežavanja za Q3","index":6,"n_rows":20,"n_cols":6,"rows_kept":20,"merged":[[0,0,0,3],[2,0,2,3],[4,0,4,3],[14,5,17,5],[18,0,18,3]]}
["Plan proširenja mreže"]
["Uputstva"]
["Napišite kako planirate da proširite mrežu u ovom kvartalu (npr. upućivanje više telefonskih poziva, više putovanja itd.). Zatim svaki put kada dobijete novi kontakt, promenite stvarni broj napravljenih kontakata da biste pratili i videli koliko ste blizu cilja."]
[]
["Kako planiram da proširim mrežu u ovom kvartalu"]
["1. Upućujte još telefonskih poziva"]
["2. Putujte više"]
[]
[]
[]
[]
[]
[]
["Kvartalni cilj kontakta","Krajnji rok","Napravljeni su stvarni kvartalni kontakti","Rezultati"]
[20,{"$f":"TODAY()","v":"2021-07-13"},12,{"$f":"IF(tblGoals34[[#This Row],[Kvartalni cilj kontakta]]>0,tblGoals34[[#This Row],[Napravljeni su stvarni kvartalni kontakti]]/tblGoals34[[#This Row],[Kvartalni cilj kontakta]],\"\")","v":{"v":0.6,"d":"60%"}},null,"0% - 25%\n26% - 50%\n51% - 75%\n76% - 100%\n\nPromene boja na osnovu dostignutog procenta"]
[{"$nulls":3},{"$f":"IF(tblGoals34[[#This Row],[Kvartalni cilj kontakta]]>0,tblGoals34[[#This Row],[Napravljeni su stvarni kvartalni kontakti]]/tblGoals34[[#This Row],[Kvartalni cilj kontakta]],\"\")","v":""}]
[{"$nulls":3},{"$f":"IF(tblGoals34[[#This Row],[Kvartalni cilj kontakta]]>0,tblGoals34[[#This Row],[Napravljeni su stvarni kvartalni kontakti]]/tblGoals34[[#This Row],[Kvartalni cilj kontakta]],\"\")","v":""}]
[]
["Odraz na rezultat /beleške za poboljšanje"]
["Približili smo se. Umesto toga, pokušajte da pozovete u vreme ručka."]

{"sheet":"Plan umrežavanja za Q4","index":7,"n_rows":20,"n_cols":6,"rows_kept":20,"merged":[[0,0,0,3],[2,0,2,3],[4,0,4,3],[14,5,17,5],[18,0,18,3]]}
["Plan proširenja mreže"]
["Uputstva"]
["Napišite kako planirate da proširite mrežu u ovom kvartalu (npr. upućivanje više telefonskih poziva, više putovanja itd.). Zatim svaki put kada dobijete novi kontakt, promenite stvarni broj napravljenih kontakata da biste pratili i videli koliko ste blizu cilja."]
[]
["Kako planiram da proširim mrežu u ovom kvartalu"]
["1. Upućujte još telefonskih poziva"]
["2. Putujte više"]
[]
[]
[]
[]
[]
[]
["Kvartalni cilj kontakta","Krajnji rok","Napravljeni su stvarni kvartalni kontakti","Rezultati"]
[20,{"$f":"TODAY()","v":"2021-07-13"},12,{"$f":"IF(tblGoals348[[#This Row],[Kvartalni cilj kontakta]]>0,tblGoals348[[#This Row],[Napravljeni su stvarni kvartalni kontakti]]/tblGoals348[[#This Row],[Kvartalni cilj kontakta]],\"\")","v":{"v":0.6,"d":"60%"}},null,"0% - 25%\n26% - 50%\n51% - 75%\n76% - 100%\n\nPromene boja na osnovu dostignutog procenta"]
[{"$nulls":3},{"$f":"IF(tblGoals348[[#This Row],[Kvartalni cilj kontakta]]>0,tblGoals348[[#This Row],[Napravljeni su stvarni kvartalni kontakti]]/tblGoals348[[#This Row],[Kvartalni cilj kontakta]],\"\")","v":""}]
[{"$nulls":3},{"$f":"IF(tblGoals348[[#This Row],[Kvartalni cilj kontakta]]>0,tblGoals348[[#This Row],[Napravljeni su stvarni kvartalni kontakti]]/tblGoals348[[#This Row],[Kvartalni cilj kontakta]],\"\")","v":""}]
[]
["Odraz na rezultat /beleške za poboljšanje"]
["Približili smo se. Umesto toga, pokušajte da pozovete u vreme ručka."]